[Event "Titled Tuesday Blitz March 01 Late 2022"]
[White "Grischuk, Alexander"]
[Black "Tari, Aryan"]
[WhiteFideId "4126025"]
[BlackFideId "1510045"]
[WhiteElo "2762"]
[BlackElo "2567"]
[Result "1-0"]
[Round "06"]
[TimeControl "180+1"]
[Date "2022.03.01"]
[WhiteClock "0:00:05"]
[BlackClock "0:00:01"]

1. e4 {[%clk 0:03:00]}  c6 {[%clk 0:02:49]} 2. d4 {[%clk 0:03:00]}  d5 {[%clk 0:02:50]} 3. e5 {[%clk 0:03:01]}  Bf5 {[%clk 0:02:49]} 4. Nf3 {[%clk 0:03:02]}  e6 {[%clk 0:02:49]} 5. Be2 {[%clk 0:03:02]}  Ne7 {[%clk 0:02:48]} 6. c3 {[%clk 0:03:02]}  Ng6 {[%clk 0:02:45]} 7. O-O {[%clk 0:02:59]}  f6 {[%clk 0:02:45]} 8. c4 {[%clk 0:02:41]}  Be7 {[%clk 0:01:59]} 9. Nc3 {[%clk 0:02:38]}  O-O {[%clk 0:01:59]} 10. exf6 {[%clk 0:01:55]}  Bxf6 {[%clk 0:01:58]} 11. Be3 {[%clk 0:01:56]}  Nd7 {[%clk 0:01:51]} 12. Rc1 {[%clk 0:01:54]}  h6 {[%clk 0:01:35]} 13. b4 {[%clk 0:01:49]}  Ne7 {[%clk 0:01:28]} 14. b5 {[%clk 0:01:32]}  Bg4 {[%clk 0:01:27]} 15. h3 {[%clk 0:00:55]}  Bxf3 {[%clk 0:01:27]} 16. Bxf3 {[%clk 0:00:56]}  Nf5 {[%clk 0:01:27]} 17. Bg4 {[%clk 0:00:57]}  Bg5 {[%clk 0:01:01]} 18. Bxf5 {[%clk 0:00:46]}  Rxf5 {[%clk 0:01:02]} 19. bxc6 {[%clk 0:00:46]}  bxc6 {[%clk 0:01:02]} 20. Qe2 {[%clk 0:00:37]}  Bxe3 {[%clk 0:00:46]} 21. Qxe3 {[%clk 0:00:38]}  Rf6 {[%clk 0:00:46]} 22. cxd5 {[%clk 0:00:37]}  cxd5 {[%clk 0:00:45]} 23. Na4 {[%clk 0:00:29]}  Nb6 {[%clk 0:00:44]} 24. Nxb6 {[%clk 0:00:27]}  axb6 {[%clk 0:00:44]} 25. Rc2 {[%clk 0:00:26]}  Qd6 {[%clk 0:00:41]} 26. Rfc1 {[%clk 0:00:25]}  Ra3 {[%clk 0:00:38]} 27. Rc8+ {[%clk 0:00:22]}  Kh7 {[%clk 0:00:38]} 28. R1c3 {[%clk 0:00:20]}  Rxa2 {[%clk 0:00:17]} 29. Qd3+ {[%clk 0:00:20]}  Rf5 {[%clk 0:00:18]} 30. Rc2 {[%clk 0:00:17]}  Ra1+ {[%clk 0:00:17]} 31. Rc1 {[%clk 0:00:17]}  Rxc1+ {[%clk 0:00:16]} 32. Rxc1 {[%clk 0:00:18]}  Qf4 {[%clk 0:00:16]} 33. Rc2 {[%clk 0:00:17]}  h5 {[%clk 0:00:14]} 34. Re2 {[%clk 0:00:14]}  h4 {[%clk 0:00:11]} 35. f3 {[%clk 0:00:11]}  Qc1+ {[%clk 0:00:07]} 36. Kf2 {[%clk 0:00:09]}  Qh6 {[%clk 0:00:06]} 37. Rb2 {[%clk 0:00:07]}  Qf4 {[%clk 0:00:04]} 38. Rxb6 {[%clk 0:00:07]}  Qg3+ {[%clk 0:00:04]} 39. Kf1 {[%clk 0:00:07]}  Qg6 {[%clk 0:00:04]} 40. Rb2 {[%clk 0:00:06]}  Rf4 {[%clk 0:00:04]} 41. Qe3 {[%clk 0:00:04]}  Qf6 {[%clk 0:00:04]} 42. Rd2 {[%clk 0:00:04]}  g5 {[%clk 0:00:04]} 43. Kg1 {[%clk 0:00:04]}  Kh6 {[%clk 0:00:04]} 44. Kh1 {[%clk 0:00:05]}  Kg6 {[%clk 0:00:04]} 45. Rd1 {[%clk 0:00:05]}  Kh6 {[%clk 0:00:04]} 46. Rd2 {[%clk 0:00:05]}  Kg6 {[%clk 0:00:04]} 47. Rd1 {[%clk 0:00:05]}  Kh6 {[%clk 0:00:05]} 48. Qc3 {[%clk 0:00:03]}  Qg7 {[%clk 0:00:04]} 49. Qc8 {[%clk 0:00:03]}  Qf6 {[%clk 0:00:03]} 50. Re1 {[%clk 0:00:02]}  e5 {[%clk 0:00:02]} 51. Rxe5 {[%clk 0:00:01]}  Qg7 {[%clk 0:00:02]} 52. Re6+ {[%clk 0:00:01]}  Rf6 {[%clk 0:00:03]} 53. Qc6 {[%clk 0:00:01]}  Rxe6 {[%clk 0:00:02]} 54. Qxe6+ {[%clk 0:00:02]}  Kh5 {[%clk 0:00:02]} 55. Qxd5 {[%clk 0:00:02]}  Qc7 {[%clk 0:00:03]} 56. Qe5 {[%clk 0:00:03]}  Qc1+ {[%clk 0:00:03]} 57. Kh2 {[%clk 0:00:03]}  Qd2 {[%clk 0:00:02]} 58. Qe8+ {[%clk 0:00:03]}  Kh6 {[%clk 0:00:02]} 59. Qe6+ {[%clk 0:00:04]}  Kh5 {[%clk 0:00:02]} 60. Qe5 {[%clk 0:00:05]}  Kh6 {[%clk 0:00:02]} 61. d5 {[%clk 0:00:05]}  Kg6 {[%clk 0:00:02]} 62. d6 {[%clk 0:00:05]}  Kf7 {[%clk 0:00:01]} 63. Qf5+ {[%clk 0:00:04]}  Ke8 {[%clk 0:00:01]} 64. Qe6+ {[%clk 0:00:05]}  Kf8 {[%clk 0:00:02]} 65. Qe7+ {[%clk 0:00:05]}  Kg8 {[%clk 0:00:02]} 66. Qe5 {[%clk 0:00:04]}  Kf7 {[%clk 0:00:03]} 67. f4 {[%clk 0:00:04]}  Qxf4+ {[%clk 0:00:02]} 68. Qxf4+ {[%clk 0:00:03]}  gxf4 {[%clk 0:00:03]} 69. Kg1 {[%clk 0:00:03]}  Ke6 {[%clk 0:00:03]} 70. Kf2 {[%clk 0:00:03]}  Kxd6 {[%clk 0:00:04]} 71. Kf3 {[%clk 0:00:04]}  Ke5 {[%clk 0:00:03]} 72. Kg4 {[%clk 0:00:05]}  Ke4 {[%clk 0:00:01]} 73. Kxh4 {[%clk 0:00:05]}  Ke3 {[%clk 0:00:01]} 74. Kg4 {[%clk 0:00:05]} 1-0


[Site "https://www.chess.com"]

[Event "Titled Tuesday Blitz March 01 Late 2022"]
[White "Gulecyuz, Deniz"]
[Black "Yordanov, Nikolay Plamenov"]
[WhiteFideId "30921341"]
[BlackFideId "2907445"]
[WhiteElo "1925"]
[BlackElo "2248"]
[Result "0-1"]
[Round "06"]
[TimeControl "180+1"]
[Date "2022.03.02"]
[WhiteClock "0:00:30"]
[BlackClock "0:01:35"]

1. Nf3 {[%clk 0:03:00]}  Nf6 {[%clk 0:02:59]} 2. g3 {[%clk 0:03:01]}  g6 {[%clk 0:03:00]} 3. Bg2 {[%clk 0:03:02]}  Bg7 {[%clk 0:03:00]} 4. O-O {[%clk 0:03:02]}  O-O {[%clk 0:03:01]} 5. c4 {[%clk 0:03:03]}  d6 {[%clk 0:03:01]} 6. Nc3 {[%clk 0:03:03]}  Nc6 {[%clk 0:03:00]} 7. d4 {[%clk 0:03:04]}  a6 {[%clk 0:03:01]} 8. e4 {[%clk 0:03:00]}  Bg4 {[%clk 0:02:58]} 9. Be3 {[%clk 0:02:57]}  e5 {[%clk 0:02:55]} 10. d5 {[%clk 0:02:49]}  Nd4 {[%clk 0:02:54]} 11. Re1 {[%clk 0:02:27]}  Nxf3+ {[%clk 0:02:42]} 12. Bxf3 {[%clk 0:02:27]}  Bxf3 {[%clk 0:02:43]} 13. Qxf3 {[%clk 0:02:27]}  b6 {[%clk 0:02:40]} 14. b4 {[%clk 0:02:25]}  Qd7 {[%clk 0:02:40]} 15. c5 {[%clk 0:02:22]}  bxc5 {[%clk 0:02:38]} 16. bxc5 {[%clk 0:02:22]}  Ng4 {[%clk 0:02:36]} 17. c6 {[%clk 0:02:21]}  Qc8 {[%clk 0:02:36]} 18. Bd2 {[%clk 0:02:12]}  f5 {[%clk 0:02:33]} 19. h3 {[%clk 0:02:07]}  Nf6 {[%clk 0:02:17]} 20. Bg5 {[%clk 0:01:40]}  Nxe4 {[%clk 0:02:13]} 21. Nxe4 {[%clk 0:01:37]}  fxe4 {[%clk 0:02:13]} 22. Qg2 {[%clk 0:01:31]}  Qf5 {[%clk 0:02:10]} 23. Be3 {[%clk 0:01:32]}  Rab8 {[%clk 0:02:08]} 24. Rab1 {[%clk 0:01:32]}  h5 {[%clk 0:02:02]} 25. Rb7 {[%clk 0:01:27]}  Rbc8 {[%clk 0:01:59]} 26. h4 {[%clk 0:01:05]}  Kh7 {[%clk 0:01:59]} 27. Reb1 {[%clk 0:00:47]}  Rf7 {[%clk 0:01:55]} 28. R1b4 {[%clk 0:00:44]}  Bh6 {[%clk 0:01:53]} 29. Qxe4 {[%clk 0:00:40]}  Bxe3 {[%clk 0:01:44]} 30. Qxf5 {[%clk 0:00:38]}  Rxf5 {[%clk 0:01:39]} 31. fxe3 {[%clk 0:00:39]}  Rcf8 {[%clk 0:01:35]} 32. Rxc7+ {[%clk 0:00:35]}  Kh6 {[%clk 0:01:36]} 33. Rbb7 {[%clk 0:00:30]}  Rf1+ {[%clk 0:01:35]} 0-1


[Site "https://www.chess.com"]

[Event "Titled Tuesday Blitz March 01 Late 2022"]
[White "Guseinov, Gadir"]
[Black "Thavandiran, Shiyam"]
[WhiteFideId "13401378"]
[BlackFideId "2605058"]
[WhiteElo "2581"]
[BlackElo "2357"]
[Result "0-1"]
[Round "06"]
[TimeControl "180+1"]
[Date "2022.03.01"]
[WhiteClock "0:00:09"]
[BlackClock "0:00:47"]

1. e4 {[%clk 0:03:00]}  e6 {[%clk 0:02:58]} 2. d4 {[%clk 0:03:00]}  d5 {[%clk 0:02:58]} 3. e5 {[%clk 0:03:01]}  c5 {[%clk 0:02:58]} 4. c3 {[%clk 0:03:01]}  Nc6 {[%clk 0:02:59]} 5. Nf3 {[%clk 0:03:02]}  Bd7 {[%clk 0:02:59]} 6. Be2 {[%clk 0:03:02]}  Nge7 {[%clk 0:02:58]} 7. Na3 {[%clk 0:03:01]}  cxd4 {[%clk 0:02:57]} 8. cxd4 {[%clk 0:02:59]}  Nf5 {[%clk 0:02:58]} 9. Nc2 {[%clk 0:03:00]}  Qb6 {[%clk 0:02:57]} 10. O-O {[%clk 0:02:59]}  a5 {[%clk 0:02:47]} 11. Bd3 {[%clk 0:02:57]}  Nfxd4 {[%clk 0:02:38]} 12. Nfxd4 {[%clk 0:02:48]}  Nxd4 {[%clk 0:02:38]} 13. Be3 {[%clk 0:02:47]}  Bc5 {[%clk 0:02:38]} 14. Nxd4 {[%clk 0:02:37]}  Bxd4 {[%clk 0:02:38]} 15. Qg4 {[%clk 0:02:38]}  Bxe3 {[%clk 0:02:34]} 16. Qxg7 {[%clk 0:02:38]}  O-O-O {[%clk 0:02:31]} 17. fxe3 {[%clk 0:02:33]}  Qxe3+ {[%clk 0:02:31]} 18. Kh1 {[%clk 0:02:33]}  Qxd3 {[%clk 0:02:31]} 19. Rxf7 {[%clk 0:02:34]}  Bc6 {[%clk 0:02:00]} 20. Rc1 {[%clk 0:02:23]}  Qb5 {[%clk 0:01:48]} 21. Qh6 {[%clk 0:01:15]}  Qxb2 {[%clk 0:01:28]} 22. Rxc6+ {[%clk 0:00:58]}  bxc6 {[%clk 0:01:28]} 23. Qxe6+ {[%clk 0:00:58]}  Kb8 {[%clk 0:01:28]} 24. g3 {[%clk 0:00:38]}  Qc1+ {[%clk 0:01:14]} 25. Kg2 {[%clk 0:00:38]}  Rhe8 {[%clk 0:01:14]} 26. Qf5 {[%clk 0:00:27]}  Qb2+ {[%clk 0:01:13]} 27. Kh3 {[%clk 0:00:22]}  Rxe5 {[%clk 0:01:04]} 28. Qxh7 {[%clk 0:00:19]}  Re2 {[%clk 0:01:00]} 29. Kg4 {[%clk 0:00:19]}  Rxh2 {[%clk 0:00:52]} 30. Qg6 {[%clk 0:00:10]}  Qe2+ {[%clk 0:00:49]} 31. Kg5 {[%clk 0:00:10]}  Qe5+ {[%clk 0:00:47]} 32. Kg4 {[%clk 0:00:09]}  Qe4+ {[%clk 0:00:47]} 0-1


[Site "https://www.chess.com"]

[Event "Titled Tuesday Blitz March 01 Late 2022"]
[White "Dronavalli, Harika"]
[Black "Szente Varga, Fruzsina"]
[WhiteFideId "5015197"]
[BlackFideId "712264"]
[WhiteElo "2382"]
[BlackElo "1994"]
[Result "1-0"]
[Round "06"]
[TimeControl "180+1"]
[Date "2022.03.02"]
[WhiteClock "0:01:15"]
[BlackClock "0:00:18"]

1. d4 {[%clk 0:03:00]}  Nf6 {[%clk 0:03:00]} 2. c4 {[%clk 0:03:00]}  g6 {[%clk 0:03:00]} 3. h4 {[%clk 0:03:00]}  h5 {[%clk 0:02:57]} 4. Nc3 {[%clk 0:02:52]}  d5 {[%clk 0:02:57]} 5. Bg5 {[%clk 0:02:45]}  dxc4 {[%clk 0:02:55]} 6. e4 {[%clk 0:02:44]}  Nc6 {[%clk 0:02:51]} 7. Nf3 {[%clk 0:02:39]}  Bg4 {[%clk 0:02:51]} 8. d5 {[%clk 0:02:32]}  Bxf3 {[%clk 0:02:50]} 9. gxf3 {[%clk 0:02:32]}  Ne5 {[%clk 0:02:42]} 10. f4 {[%clk 0:02:32]}  Nd3+ {[%clk 0:02:17]} 11. Bxd3 {[%clk 0:02:31]}  cxd3 {[%clk 0:02:18]} 12. Qxd3 {[%clk 0:02:29]}  Qd7 {[%clk 0:02:07]} 13. e5 {[%clk 0:02:27]}  Nh7 {[%clk 0:01:56]} 14. e6 {[%clk 0:02:23]}  Qc8 {[%clk 0:01:28]} 15. Nb5 {[%clk 0:01:57]}  a6 {[%clk 0:01:09]} 16. Qc3 {[%clk 0:01:51]}  f6 {[%clk 0:00:54]} 17. Nxc7+ {[%clk 0:01:50]}  Kd8 {[%clk 0:00:54]} 18. Nxa8 {[%clk 0:01:50]}  Qxa8 {[%clk 0:00:39]} 19. d6 {[%clk 0:01:45]}  Qc8 {[%clk 0:00:26]} 20. Qxc8+ {[%clk 0:01:39]}  Kxc8 {[%clk 0:00:27]} 21. Rc1+ {[%clk 0:01:35]}  Kb8 {[%clk 0:00:24]} 22. d7 {[%clk 0:01:34]}  Bg7 {[%clk 0:00:24]} 23. Ke2 {[%clk 0:01:30]}  fxg5 {[%clk 0:00:24]} 24. fxg5 {[%clk 0:01:25]}  Rd8 {[%clk 0:00:24]} 25. Rc2 {[%clk 0:01:14]}  Nf8 {[%clk 0:00:21]} 26. Rhc1 {[%clk 0:01:14]}  Nxe6 {[%clk 0:00:22]} 27. Rc8+ {[%clk 0:01:15]}  Ka7 {[%clk 0:00:18]} 28. Rxd8 {[%clk 0:01:15]}  Nxd8 {[%clk 0:00:18]} 29. Rc8 {[%clk 0:01:15]}  Nc6 {[%clk 0:00:19]} 30. Rxc6 {[%clk 0:01:15]}  bxc6 {[%clk 0:00:18]} 31. d8=Q {[%clk 0:01:15]} 1-0


[Site "https://www.chess.com"]

[Event "Titled Tuesday Blitz March 01 Late 2022"]
[White "Hjartarson, Johann"]
[Black "Saraci, Nderim"]
[WhiteFideId "2300044"]
[BlackFideId "6351921"]
[WhiteElo "2484"]
[BlackElo "2573"]
[Result "0-1"]
[Round "06"]
[TimeControl "180+1"]
[Date "2022.03.01"]
[WhiteClock "0:00:56"]
[BlackClock "0:00:40"]

1. e4 {[%clk 0:03:00]}  c5 {[%clk 0:02:58]} 2. Ne2 {[%clk 0:03:00]}  g6 {[%clk 0:02:57]} 3. Nbc3 {[%clk 0:02:58]}  Bg7 {[%clk 0:02:56]} 4. g3 {[%clk 0:02:58]}  Nc6 {[%clk 0:02:57]} 5. Bg2 {[%clk 0:02:58]}  d6 {[%clk 0:02:57]} 6. d3 {[%clk 0:02:57]}  Nf6 {[%clk 0:02:58]} 7. O-O {[%clk 0:02:56]}  O-O {[%clk 0:02:59]} 8. h3 {[%clk 0:02:55]}  Rb8 {[%clk 0:02:59]} 9. Be3 {[%clk 0:02:53]}  b5 {[%clk 0:02:59]} 10. Qd2 {[%clk 0:02:50]}  b4 {[%clk 0:02:59]} 11. Nd1 {[%clk 0:02:50]}  a5 {[%clk 0:02:58]} 12. a3 {[%clk 0:02:49]}  Nd7 {[%clk 0:02:56]} 13. axb4 {[%clk 0:02:47]}  axb4 {[%clk 0:02:56]} 14. Bh6 {[%clk 0:02:42]}  Bb7 {[%clk 0:02:54]} 15. Bxg7 {[%clk 0:02:41]}  Kxg7 {[%clk 0:02:55]} 16. Ne3 {[%clk 0:02:41]}  Ra8 {[%clk 0:02:52]} 17. Ng4 {[%clk 0:02:32]}  Nde5 {[%clk 0:02:43]} 18. Qh6+ {[%clk 0:02:30]}  Kg8 {[%clk 0:02:41]} 19. Ne3 {[%clk 0:02:27]}  Nd4 {[%clk 0:02:35]} 20. Nf4 {[%clk 0:02:20]}  Qd7 {[%clk 0:02:22]} 21. Kh1 {[%clk 0:02:09]}  Rxa1 {[%clk 0:02:21]} 22. Rxa1 {[%clk 0:02:08]}  Ra8 {[%clk 0:02:21]} 23. Rxa8+ {[%clk 0:02:05]}  Bxa8 {[%clk 0:02:22]} 24. Nfd5 {[%clk 0:02:04]}  Bxd5 {[%clk 0:02:20]} 25. Nxd5 {[%clk 0:01:58]}  Nxc2 {[%clk 0:02:14]} 26. f4 {[%clk 0:01:50]}  Nxd3 {[%clk 0:00:52]} 27. f5 {[%clk 0:01:48]}  Qd8 {[%clk 0:00:53]} 28. Qd2 {[%clk 0:01:41]}  Nde1 {[%clk 0:00:50]} 29. Bf1 {[%clk 0:01:38]}  b3 {[%clk 0:00:50]} 30. Bc4 {[%clk 0:01:36]}  Nf3 {[%clk 0:00:49]} 31. Qf4 {[%clk 0:01:24]}  Ne5 {[%clk 0:00:49]} 32. f6 {[%clk 0:01:23]}  exf6 {[%clk 0:00:45]} 33. Bxb3 {[%clk 0:01:11]}  Nd4 {[%clk 0:00:44]} 34. Nxf6+ {[%clk 0:00:56]}  Kg7 {[%clk 0:00:44]} 35. Ng4 {[%clk 0:00:56]}  Nxb3 {[%clk 0:00:40]} 0-1


[Site "https://www.chess.com"]

[Event "Titled Tuesday Blitz March 01 Late 2022"]
[White "Hua, Lefong"]
[Black "Nakamura, Hikaru"]
[WhiteFideId "2602253"]
[BlackFideId "2016192"]
[WhiteElo "2597"]
[BlackElo "2850"]
[Result "0-1"]
[Round "06"]
[TimeControl "180+1"]
[Date "2022.03.01"]
[WhiteClock "0:00:50"]
[BlackClock "0:01:39"]

1. d4 {[%clk 0:03:00]}  g6 {[%clk 0:03:00]} 2. c4 {[%clk 0:03:00]}  Bg7 {[%clk 0:02:57]} 3. e4 {[%clk 0:03:00]}  d6 {[%clk 0:02:58]} 4. f4 {[%clk 0:02:59]}  c5 {[%clk 0:02:58]} 5. d5 {[%clk 0:02:59]}  b5 {[%clk 0:02:58]} 6. cxb5 {[%clk 0:02:59]}  a6 {[%clk 0:02:58]} 7. Nc3 {[%clk 0:02:47]}  Nf6 {[%clk 0:02:58]} 8. Nf3 {[%clk 0:02:45]}  O-O {[%clk 0:02:58]} 9. a4 {[%clk 0:02:43]}  axb5 {[%clk 0:02:57]} 10. Bxb5 {[%clk 0:02:42]}  Ba6 {[%clk 0:02:57]} 11. Bd2 {[%clk 0:02:34]}  Ne8 {[%clk 0:02:55]} 12. O-O {[%clk 0:02:31]}  Nc7 {[%clk 0:02:54]} 13. Qe2 {[%clk 0:02:30]}  Bxb5 {[%clk 0:02:49]} 14. axb5 {[%clk 0:02:30]}  Nd7 {[%clk 0:02:50]} 15. Qd3 {[%clk 0:02:15]}  Qb8 {[%clk 0:02:46]} 16. Rfe1 {[%clk 0:02:08]}  Nb6 {[%clk 0:02:31]} 17. b3 {[%clk 0:02:01]}  Qb7 {[%clk 0:02:27]} 18. h3 {[%clk 0:01:52]}  Rfc8 {[%clk 0:02:22]} 19. Kh2 {[%clk 0:01:51]}  Rxa1 {[%clk 0:02:15]} 20. Rxa1 {[%clk 0:01:50]}  Nd7 {[%clk 0:02:16]} 21. Qc4 {[%clk 0:01:40]}  Nxb5 {[%clk 0:01:59]} 22. e5 {[%clk 0:01:28]}  Nxc3 {[%clk 0:01:54]} 23. Bxc3 {[%clk 0:01:29]}  Nb6 {[%clk 0:01:54]} 24. Qb5 {[%clk 0:01:25]}  Rb8 {[%clk 0:01:54]} 25. Rd1 {[%clk 0:01:18]}  Nd7 {[%clk 0:01:48]} 26. Qxb7 {[%clk 0:01:06]}  Rxb7 {[%clk 0:01:49]} 27. Rb1 {[%clk 0:01:06]}  Nb6 {[%clk 0:01:48]} 28. Rd1 {[%clk 0:01:04]}  Na8 {[%clk 0:01:48]} 29. Rb1 {[%clk 0:01:03]}  Nc7 {[%clk 0:01:48]} 30. exd6 {[%clk 0:01:00]}  exd6 {[%clk 0:01:49]} 31. Bxg7 {[%clk 0:00:58]}  Kxg7 {[%clk 0:01:50]} 32. Re1 {[%clk 0:00:54]}  Nxd5 {[%clk 0:01:42]} 33. Rd1 {[%clk 0:00:53]}  Nxf4 {[%clk 0:01:43]} 34. Rxd6 {[%clk 0:00:53]}  Rxb3 {[%clk 0:01:43]} 35. Rc6 {[%clk 0:00:52]}  Rb2 {[%clk 0:01:43]} 36. Rxc5 {[%clk 0:00:51]}  Rxg2+ {[%clk 0:01:42]} 37. Kh1 {[%clk 0:00:52]}  Rg3 {[%clk 0:01:43]} 38. Ne5 {[%clk 0:00:50]}  Rxh3+ {[%clk 0:01:42]} 39. Kg1 {[%clk 0:00:51]}  Rg3+ {[%clk 0:01:40]} 40. Kh2 {[%clk 0:00:51]}  Rg2+ {[%clk 0:01:40]} 41. Kh1 {[%clk 0:00:51]}  Re2 {[%clk 0:01:41]} 42. Ng4 {[%clk 0:00:50]}  h5 {[%clk 0:01:39]} 0-1


[Site "https://www.chess.com"]

[Event "Titled Tuesday Blitz March 01 Late 2022"]
[White "Khabinets, Ivan"]
[Black "Miszler, Levente"]
[WhiteFideId "14115980"]
[BlackFideId "763276"]
[WhiteElo "2114"]
[BlackElo "1966"]
[Result "0-1"]
[Round "06"]
[TimeControl "180+1"]
[Date "2022.03.02"]
[WhiteClock "0:00:10"]
[BlackClock "0:00:44"]

1. Nf3 {[%clk 0:03:00]}  Nf6 {[%clk 0:02:56]} 2. c4 {[%clk 0:02:57]}  g6 {[%clk 0:02:56]} 3. g3 {[%clk 0:02:54]}  Bg7 {[%clk 0:02:56]} 4. Bg2 {[%clk 0:02:54]}  O-O {[%clk 0:02:57]} 5. O-O {[%clk 0:02:54]}  d6 {[%clk 0:02:58]} 6. Nc3 {[%clk 0:02:52]}  Nc6 {[%clk 0:02:57]} 7. d3 {[%clk 0:02:52]}  e5 {[%clk 0:02:57]} 8. Rb1 {[%clk 0:02:49]}  a5 {[%clk 0:02:57]} 9. a3 {[%clk 0:02:49]}  h6 {[%clk 0:02:57]} 10. Ne1 {[%clk 0:02:49]}  Be6 {[%clk 0:02:56]} 11. Nd5 {[%clk 0:02:49]}  Qd7 {[%clk 0:02:51]} 12. Nxf6+ {[%clk 0:02:39]}  Bxf6 {[%clk 0:02:51]} 13. Bxh6 {[%clk 0:02:40]}  Rfe8 {[%clk 0:02:50]} 14. b4 {[%clk 0:02:40]}  axb4 {[%clk 0:02:50]} 15. axb4 {[%clk 0:02:41]}  Bh3 {[%clk 0:02:49]} 16. b5 {[%clk 0:02:41]}  Ne7 {[%clk 0:02:47]} 17. Nc2 {[%clk 0:02:36]}  Bxg2 {[%clk 0:02:45]} 18. Kxg2 {[%clk 0:02:35]}  Nf5 {[%clk 0:02:46]} 19. Bd2 {[%clk 0:02:33]}  e4 {[%clk 0:02:46]} 20. Ne3 {[%clk 0:02:16]}  exd3 {[%clk 0:02:41]} 21. exd3 {[%clk 0:02:13]}  Kg7 {[%clk 0:02:41]} 22. Qf3 {[%clk 0:02:08]}  Nd4 {[%clk 0:02:38]} 23. Qxb7 {[%clk 0:02:08]}  Ra2 {[%clk 0:02:37]} 24. Rbd1 {[%clk 0:01:59]}  Nf5 {[%clk 0:02:27]} 25. Nxf5+ {[%clk 0:01:51]}  Qxf5 {[%clk 0:02:28]} 26. Qf3 {[%clk 0:01:51]}  Qc5 {[%clk 0:02:19]} 27. Be3 {[%clk 0:01:49]}  Rxe3 {[%clk 0:02:16]} 28. d4 {[%clk 0:01:37]}  Bxd4 {[%clk 0:02:09]} 29. Qg4 {[%clk 0:01:22]}  Bf6 {[%clk 0:01:59]} 30. Rd5 {[%clk 0:01:18]}  Qa3 {[%clk 0:01:53]} 31. h4 {[%clk 0:01:07]}  Ree2 {[%clk 0:01:36]} 32. h5 {[%clk 0:01:06]}  Qe3 {[%clk 0:01:34]} 33. Rf5 {[%clk 0:01:00]}  Qe6 {[%clk 0:01:11]} 34. h6+ {[%clk 0:00:40]}  Kh7 {[%clk 0:01:08]} 35. Rf4 {[%clk 0:00:15]}  Qxg4 {[%clk 0:00:59]} 36. Rxg4 {[%clk 0:00:16]}  Kxh6 {[%clk 0:00:58]} 37. Rf4 {[%clk 0:00:16]}  Kg7 {[%clk 0:00:57]} 38. Rb1 {[%clk 0:00:12]}  Rab2 {[%clk 0:00:52]} 39. Rd1 {[%clk 0:00:11]}  Rec2 {[%clk 0:00:50]} 40. Rd5 {[%clk 0:00:11]}  Be5 {[%clk 0:00:50]} 41. Rf3 {[%clk 0:00:10]}  Rxc4 {[%clk 0:00:44]} 0-1


[Site "https://www.chess.com"]

[Event "Titled Tuesday Blitz March 01 Late 2022"]
[White "Kopczynski, Michal"]
[Black "Scalzo, Antonio R"]
[WhiteFideId "1124200"]
[BlackFideId "2079674"]
[WhiteElo "2235"]
[BlackElo "2312"]
[Result "1-0"]
[Round "06"]
[TimeControl "180+1"]
[Date "2022.03.02"]
[WhiteClock "0:00:28"]
[BlackClock "0:01:27"]

1. e4 {[%clk 0:02:50]}  Nf6 {[%clk 0:02:58]} 2. Nc3 {[%clk 0:02:49]}  d6 {[%clk 0:02:58]} 3. d4 {[%clk 0:02:49]}  c6 {[%clk 0:02:56]} 4. Bg5 {[%clk 0:02:49]}  Bg4 {[%clk 0:02:48]} 5. f3 {[%clk 0:02:48]}  Bh5 {[%clk 0:02:48]} 6. Qd2 {[%clk 0:02:47]}  e6 {[%clk 0:02:45]} 7. O-O-O {[%clk 0:02:46]}  Be7 {[%clk 0:02:43]} 8. g4 {[%clk 0:02:46]}  Bg6 {[%clk 0:02:43]} 9. h4 {[%clk 0:02:47]}  h6 {[%clk 0:02:43]} 10. Be3 {[%clk 0:02:47]}  h5 {[%clk 0:02:42]} 11. g5 {[%clk 0:02:46]}  Nfd7 {[%clk 0:02:42]} 12. f4 {[%clk 0:02:44]}  d5 {[%clk 0:02:43]} 13. exd5 {[%clk 0:02:39]}  cxd5 {[%clk 0:02:42]} 14. Bd3 {[%clk 0:02:37]}  Bxd3 {[%clk 0:02:40]} 15. Qxd3 {[%clk 0:02:38]}  g6 {[%clk 0:02:40]} 16. Nf3 {[%clk 0:02:35]}  Nc6 {[%clk 0:02:40]} 17. Ne5 {[%clk 0:02:30]}  Ndxe5 {[%clk 0:02:32]} 18. fxe5 {[%clk 0:02:31]}  O-O {[%clk 0:02:32]} 19. Ne2 {[%clk 0:02:21]}  Rc8 {[%clk 0:02:18]} 20. a3 {[%clk 0:02:19]}  Qa5 {[%clk 0:02:12]} 21. Nf4 {[%clk 0:02:14]}  Kg7 {[%clk 0:02:13]} 22. Rdf1 {[%clk 0:02:05]}  a6 {[%clk 0:02:12]} 23. Rhg1 {[%clk 0:01:54]}  Qb5 {[%clk 0:02:10]} 24. Qd1 {[%clk 0:01:38]}  Na5 {[%clk 0:02:06]} 25. Nxh5+ {[%clk 0:01:12]}  gxh5 {[%clk 0:02:06]} 26. Qxh5 {[%clk 0:01:11]}  Bxa3 {[%clk 0:01:44]} 27. bxa3 {[%clk 0:00:40]}  Rxc2+ {[%clk 0:01:39]} 28. Kxc2 {[%clk 0:00:39]}  Rc8+ {[%clk 0:01:39]} 29. Kd2 {[%clk 0:00:35]}  Nb3+ {[%clk 0:01:36]} 30. Ke1 {[%clk 0:00:33]}  Qa5+ {[%clk 0:01:27]} 31. Kf2 {[%clk 0:00:32]}  Rc2+ {[%clk 0:01:27]} 32. Kg3 {[%clk 0:00:28]} 1-0


[Site "https://www.chess.com"]